[Event "94th FRA-ch Veterans 2019"]
[Site "Chartres"]
[Date "2019.08.23"]
[Round "7.1"]
[White "Dussol, Pierre"]
[Black "Daurelle, Herve"]
[Result "1/2-1/2"]
[ECO "E01"]
[WhiteElo "2102"]
[BlackElo "2179"]
[Annotator "NA"]
[PlyCount "82"]
[EventDate "2019.08.17"]
[EventType "swiss"]
[EventCountry "FRA"]
[SourceTitle "playchess.com"]
[Source "ChessBase"]
[SourceQuality "1"]
[TimeControl "40/5400+30:1800+30"]

1. d4 {[%emt 0:00:00]} Nf6 {[%emt 0:00:00]} 2. c4 {[%emt 0:00:21]} e6 {[%emt 0:00:00]} 3. Nf3 {[%emt 0:01:30]} c5 {[%emt 0:00:00]} 4. g3 {[%emt 0:04:15]} cxd4 {[%emt 0:01:11]} 5. Nxd4 {[%emt 0:00:29]} d5 {[%emt 0:00:35]} 6. Bg2 {[%emt 0:03:13]} e5 {[%emt 0:00:26]} 7. Nb3 {[%emt 0:04:43]} d4 {[%emt 0:02:34]} 8. O-O {[%emt 0:02:33]} Nc6 {[%emt 0:01:19]} 9. e3 {[%emt 0:15:05]} d3 {[%emt 0:01:47]} 10. Nc3 {[%emt 0:01:35]} Bg4 {[%emt 0:03:31]} 11. f3 {[%emt 0:11:59]} Be6 {[%emt 0:00:26]} 12. f4 {[%emt 0:00:59]} Bxc4 {[%emt 0:10:55]} 13. Nd2 {[%emt 0:05:13]} Be6 {[%emt 0:07:18]} 14. Bxc6+ {[%emt 0:05:48]} bxc6 {[%emt 0:01:37]} 15. f5 {[%emt 0:04:52]} Bc8 {[%emt 0:16:54]} 16. Qa4 {[%emt 0:03:57]} Bb7 {[%emt 0:08:31]} 17. Nc4 {[%emt 0:07:14]} Be7 {[%emt 0:09:02]} 18. Nxe5 {[%emt 0:09:13]} d2 {[%emt 0:00:56]} 19. Qb3 {[%emt 0:00:17]} O-O {[%emt 0:01:09]} 20. Qxb7 {[%emt 0:00:25]} dxc1=Q {[%emt 0:02:05]} 21. Raxc1 {[%emt 0:00:19]} Bc5 {[%emt 0:13:14]} 22. Nd1 {[%emt 0:05:10]} Qd5 {[%emt 0:02:31]} 23. Qxc6 {[%emt 0:04:02]} Bxe3+ {[%emt 0:00:35]} 24. Nxe3 {[%emt 0:00:08]} Qxe5 {[%emt 0:00:04]} 25. Qc3 {[%emt 0:00:29]} Qb5 {[%emt 0:02:20]} 26. b3 {[%emt 0:00:34]} Rfe8 {[%emt 0:01:01]} 27. Rfe1 {[%emt 0:01:26]} h5 {[%emt 0:01:43]} 28. a4 {[%emt 0:00:53]} Qb6 {[%emt 0:02:12]} 29. a5 {[%emt 0:01:08]} Qb5 {[%emt 0:00:26]} 30. b4 {[%emt 0:01:37]} Rab8 {[%emt 0:03:41]} 31. Rb1 {[%emt 0:02:48]} Re4 {[%emt 0:02:22]} 32. Nc2 {[%emt 0:00:46]} Qxf5 {[%emt 0:00:49]} 33. Rf1 {[%emt 0:00:15]} Qh3 {[%emt 0:02:10]} 34. Qd2 {[%emt 0:01:04]} Rbe8 {[%emt 0:00:32]} 35. Qg2 {[%emt 0:00:35]} Qc8 {[%emt 0:00:55]} 36. Rbe1 {[%emt 0:00:33]} Qc4 {[%emt 0:00:49]} 37. Rxe4 {[%emt 0:00:45]} Rxe4 {[%emt 0:00:14]} 38. Qd2 {[%emt 0:00:55]} Re2 {[%emt 0:02:03]} 39. Ne3 {[%emt 0:00:37]} Qb5 {[%emt 0:00:32]} 40. Qd8+ {[%emt 0:00:45]} Kh7 {[%emt 0:00:18]} 41. Qd4 {[%emt 0:01:34]} Kg8 {[%emt 0:31:43]} 1/2-1/2

[Event "94th FRA-ch Veterans 2019"]
[Site "Chartres"]
[Date "2019.08.23"]
[Round "7.2"]
[White "Large, Laurent"]
[Black "Ladisic, Alex-Sacha"]
[Result "1-0"]
[ECO "B08"]
[WhiteElo "2183"]
[BlackElo "1943"]
[Annotator "NA"]
[PlyCount "103"]
[EventDate "2019.08.17"]
[EventType "swiss"]
[EventCountry "FRA"]
[SourceTitle "playchess.com"]
[Source "ChessBase"]
[SourceQuality "1"]
[TimeControl "40/5400+30:1800+30"]

1. d4 {[%emt 0:00:00]} Nf6 {[%emt 0:00:00]} 2. Nf3 {[%emt 0:00:18]} d6 {[%emt 0:01:19]} 3. Nc3 {[%emt 0:01:07]} g6 {[%emt 0:01:37]} 4. e4 {[%emt 0:00:30]} Bg7 {[%emt 0:00:11]} 5. h3 {[%emt 0:01:12]} O-O {[%emt 0:01:21]} 6. Bc4 {[%emt 0:05:56]} Nc6 {[%emt 0:20:35]} 7. Be3 {[%emt 0:09:34]} Nxe4 {[%emt 0:15:06]} 8. Nxe4 {[%emt 0:24:23]} d5 {[%emt 0:00:05]} 9. Bd3 {[%emt 0:03:22]} dxe4 {[%emt 0:00:06]} 10. Bxe4 {[%emt 0:00:04]} Bd7 {[%emt 0:11:32]} 11. d5 {[%emt 0:09:32]} Ne5 {[%emt 0:00:18]} 12. Nxe5 {[%emt 0:03:50]} Bxe5 {[%emt 0:00:36]} 13. Bd4 {[%emt 0:00:08]} Bxd4 {[%emt 0:01:29]} 14. Qxd4 {[%emt 0:00:06]} e5 {[%emt 0:04:55]} 15. Qc4 {[%emt 0:08:10]} b5 {[%emt 0:03:17]} 16. Qb3 {[%emt 0:07:47]} Qh4 {[%emt 0:02:03]} 17. g4 {[%emt 0:01:45]} Rab8 {[%emt 0:05:37]} 18. O-O-O {[%emt 0:06:40]} Qxf2 {[%emt 0:02:20]} 19. Rhf1 {[%emt 0:00:14]} Qc5 {[%emt 0:00:45]} 20. Kb1 {[%emt 0:00:26]} Qd6 {[%emt 0:01:05]} 21. g5 {[%emt 0:01:11]} a5 {[%emt 0:03:28]} 22. Rf6 {[%emt 0:03:28]} Qe7 {[%emt 0:00:28]} 23. Rdf1 {[%emt 0:04:31]} a4 {[%emt 0:02:59]} 24. Qf3 {[%emt 0:00:43]} b4 {[%emt 0:01:30]} 25. h4 {[%emt 0:01:43]} a3 {[%emt 0:02:32]} 26. h5 {[%emt 0:01:06]} Qc5 {[%emt 0:04:23]} 27. hxg6 {[%emt 0:01:01]} Qd4 {[%emt 0:00:17]} 28. c3 {[%emt 0:01:52]} bxc3 {[%emt 0:00:01]} 29. b3 {[%emt 0:02:54]} c2+ {[%emt 0:03:27]} 30. Kxc2 {[%emt 0:00:02]} Qb2+ {[%emt 0:00:17]} 31. Kd1 {[%emt 0:00:29]} Qa1+ {[%emt 0:00:39]} 32. Kd2 {[%emt 0:00:14]} Qb2+ {[%emt 0:03:19]} 33. Bc2 {[%emt 0:00:10]} hxg6 {[%emt 0:03:49]} 34. Qd3 {[%emt 0:00:05]} Bf5 {[%emt 0:01:11]} 35. R1xf5 {[%emt 0:00:34]} gxf5 {[%emt 0:00:06]} 36. Qxf5 {[%emt 0:00:42]} Qd4+ {[%emt 0:00:20]} 37. Ke2 {[%emt 0:00:36]} e4 {[%emt 0:01:22]} 38. g6 {[%emt 0:00:43]} Kg7 {[%emt 0:02:09]} 39. Rxf7+ {[%emt 0:01:05]} Rxf7 {[%emt 0:00:03]} 40. Qxf7+ {[%emt 0:00:35]} Kh6 {[%emt 0:00:08]} 41. Qf4+ {[%emt 0:12:52]} Kxg6 {[%emt 0:05:41]} 42. Bxe4+ {[%emt 0:00:27]} Kg7 {[%emt 0:00:08]} 43. Qxc7+ {[%emt 0:00:21]} Kf6 {[%emt 0:01:24]} 44. Qf4+ {[%emt 0:02:50]} Ke7 {[%emt 0:02:39]} 45. Qc7+ {[%emt 0:01:21]} Kf6 {[%emt 0:00:25]} 46. Qd6+ {[%emt 0:03:21]} Kg5 {[%emt 0:06:31]} 47. Qg3+ {[%emt 0:04:25]} Kf6 {[%emt 0:00:09]} 48. Qg6+ {[%emt 0:03:01]} Ke5 {[%emt 0:01:13]} 49. Qe6+ {[%emt 0:00:19]} Kf4 {[%emt 0:00:08]} 50. Qf5+ {[%emt 0:00:08]} Kg3 {[%emt 0:00:05]} 51. Qf3+ {[%emt 0:00:09]} Kh4 {[%emt 0:00:39]} 52. Qf4+ {[%emt 0:00:06]} 1-0

[Event "94th FRA-ch Veterans 2019"]
[Site "Chartres"]
[Date "2019.08.23"]
[Round "7.3"]
[White "Leuly, Max"]
[Black "Brongers, Henk"]
[Result "1/2-1/2"]
[ECO "D02"]
[WhiteElo "2018"]
[BlackElo "2026"]
[Annotator "NA"]
[PlyCount "117"]
[EventDate "2019.08.17"]
[EventType "swiss"]
[EventCountry "FRA"]
[SourceTitle "playchess.com"]
[Source "ChessBase"]
[SourceQuality "1"]
[TimeControl "40/5400+30:1800+30"]

1. d4 {[%emt 0:00:00]} Nf6 {[%emt 0:00:00]} 2. Nf3 {[%emt 0:00:00]} g6 {[%emt 0:00:00]} 3. Bf4 {[%emt 0:00:01]} Bg7 {[%emt 0:02:13]} 4. e3 {[%emt 0:00:18]} d5 {[%emt 0:04:00]} 5. Be2 {[%emt 0:03:40]} c5 {[%emt 0:00:53]} 6. c3 {[%emt 0:02:13]} Qb6 {[%emt 0:01:18]} 7. Qb3 {[%emt 0:07:07]} c4 {[%emt 0:05:10]} 8. Qxb6 {[%emt 0:04:31]} axb6 {[%emt 0:00:07]} 9. Nbd2 {[%emt 0:02:04]} Nc6 {[%emt 0:05:51]} 10. O-O {[%emt 0:07:14]} Bf5 {[%emt 0:01:40]} 11. Ne5 {[%emt 0:12:56]} b5 {[%emt 0:14:05]} 12. a3 {[%emt 0:05:38]} O-O {[%emt 0:03:28]} 13. h3 {[%emt 0:01:14]} h5 {[%emt 0:13:22]} 14. Rfe1 {[%emt 0:04:25]} Ra6 {[%emt 0:02:45]} 15. f3 {[%emt 0:09:39]} Nb8 {[%emt 0:11:51]} 16. e4 {[%emt 0:12:42]} dxe4 {[%emt 0:05:44]} 17. fxe4 {[%emt 0:00:08]} Nxe4 {[%emt 0:00:14]} 18. Nxe4 {[%emt 0:02:52]} Bxe4 {[%emt 0:00:21]} 19. Bxc4 {[%emt 0:04:38]} bxc4 {[%emt 0:05:12]} 20. Rxe4 {[%emt 0:00:48]} b5 {[%emt 0:01:07]} 21. Nf3 {[%emt 0:01:26]} Nc6 {[%emt 0:00:37]} 22. d5 {[%emt 0:06:24]} e5 {[%emt 0:03:20]} 23. Nxe5 {[%emt 0:02:26]} Nxe5 {[%emt 0:00:07]} 24. Bxe5 {[%emt 0:00:04]} Bxe5 {[%emt 0:00:24]} 25. Rxe5 {[%emt 0:00:03]} Rd6 {[%emt 0:00:08]} 26. Rd1 {[%emt 0:01:19]} Rfd8 {[%emt 0:00:09]} 27. Kf2 {[%emt 0:04:01]} Kf8 {[%emt 0:01:42]} 28. Ke3 {[%emt 0:03:35]} f6 {[%emt 0:00:21]} 29. Re4 {[%emt 0:00:05]} Rxd5 {[%emt 0:00:12]} 30. Rxd5 {[%emt 0:00:38]} Rxd5 {[%emt 0:00:09]} 31. a4 {[%emt 0:01:55]} bxa4 {[%emt 0:04:23]} 32. Rxc4 {[%emt 0:00:12]} Rb5 {[%emt 0:00:06]} 33. Rxa4 {[%emt 0:00:39]} Rxb2 {[%emt 0:00:07]} 34. Kf3 {[%emt 0:00:21]} Rc2 {[%emt 0:00:20]} 35. Rc4 {[%emt 0:00:08]} Ke7 {[%emt 0:00:23]} 36. h4 {[%emt 0:01:25]} Kd6 {[%emt 0:02:16]} 37. g3 {[%emt 0:00:14]} Rc1 {[%emt 0:00:58]} 38. Rc8 {[%emt 0:00:26]} g5 {[%emt 0:02:26]} 39. hxg5 {[%emt 0:00:16]} fxg5 {[%emt 0:00:02]} 40. Kg2 {[%emt 0:01:11]} g4 {[%emt 0:01:00]} 41. c4 {[%emt 0:30:55]} Rc2+ {[%emt 0:30:17]} 42. Kf1 {[%emt 0:00:00]} Ke5 {[%emt 0:00:00]} 43. Rf8 {[%emt 0:00:00]} Rxc4 {[%emt 0:00:00]} 44. Kg2 {[%emt 0:00:00]} Rc2+ {[%emt 0:00:00]} 45. Kg1 {[%emt 0:00:00]} Ke4 {[%emt 0:00:00]} 46. Rf7 {[%emt 0:00:00]} Ke3 {[%emt 0:00:00]} 47. Rf8 {[%emt 0:00:00]} Rd2 {[%emt 0:00:00]} 48. Rf7 {[%emt 0:00:00]} Ke2 {[%emt 0:00:00]} 49. Rf2+ {[%emt 0:00:00]} Ke3 {[%emt 0:00:00]} 50. Rf8 {[%emt 0:00:00]} Rd3 {[%emt 0:00:00]} 51. Kg2 {[%emt 0:00:00]} Rd2+ {[%emt 0:00:00]} 52. Kg1 {[%emt 0:00:00]} Ke4 {[%emt 0:00:00]} 53. Rf4+ {[%emt 0:00:00]} Ke5 {[%emt 0:00:00]} 54. Rf8 {[%emt 0:00:00]} Rd6 {[%emt 0:00:00]} 55. Kg2 {[%emt 0:00:00]} Rf6 {[%emt 0:00:00]} 56. Re8+ {[%emt 0:00:00]} Kf5 {[%emt 0:00:00]} 57. Rh8 {[%emt 0:00:00]} Kg5 {[%emt 0:00:00]} 58. Rg8+ {[%emt 0:00:00]} Rg6 {[%emt 0:00:00]} 59. Ra8 {[%emt 0:00:00]} 1/2-1/2

[Event "94th FRA-ch Veterans 2019"]
[Site "Chartres"]
[Date "2019.08.23"]
[Round "7.4"]
[White "Flachet, Thierry"]
[Black "Vareille, Francois"]
[Result "0-1"]
[ECO "D90"]
[WhiteElo "2036"]
[BlackElo "2423"]
[Annotator "NA"]
[PlyCount "80"]
[EventDate "2019.08.17"]
[EventType "swiss"]
[EventCountry "FRA"]
[SourceTitle "playchess.com"]
[Source "ChessBase"]
[SourceQuality "1"]
[TimeControl "40/5400+30:1800+30"]

1. Nf3 {[%emt 0:00:00]} Nf6 {[%emt 0:00:00]} 2. c4 {[%emt 0:00:00]} g6 {[%emt 0:00:18]} 3. Nc3 {[%emt 0:00:44]} d5 {[%emt 0:00:52]} 4. cxd5 {[%emt 0:01:06]} Nxd5 {[%emt 0:00:16]} 5. Qb3 {[%emt 0:00:41]} Nb6 {[%emt 0:00:41]} 6. d4 {[%emt 0:00:45]} Bg7 {[%emt 0:00:23]} 7. e4 {[%emt 0:03:59]} Bg4 {[%emt 0:01:08]} 8. Ne5 {[%emt 0:11:25]} Be6 {[%emt 0:00:47]} 9. d5 {[%emt 0:00:36]} Bxd5 {[%emt 0:00:19]} 10. exd5 {[%emt 0:02:06]} Bxe5 {[%emt 0:00:14]} 11. Bh6 {[%emt 0:02:09]} Rg8 {[%emt 0:05:33]} 12. Bb5+ {[%emt 0:01:29]} N8d7 {[%emt 0:00:26]} 13. f4 {[%emt 0:09:26]} Bh8 {[%emt 0:05:28]} 14. O-O-O {[%emt 0:06:16]} a6 {[%emt 0:01:07]} 15. Bc6 {[%emt 0:01:10]} Qc8 {[%emt 0:00:38]} 16. Bxd7+ {[%emt 0:05:27]} Qxd7 {[%emt 0:00:44]} 17. d6 {[%emt 0:01:25]} O-O-O {[%emt 0:04:54]} 18. Qxf7 {[%emt 0:12:52]} exd6 {[%emt 0:01:02]} 19. Qxd7+ {[%emt 0:01:29]} Kxd7 {[%emt 0:00:59]} 20. Ne4 {[%emt 0:00:34]} Rde8 {[%emt 0:02:11]} 21. Rhe1 {[%emt 0:00:23]} Na4 {[%emt 0:02:15]} 22. Rd2 {[%emt 0:04:53]} Re6 {[%emt 0:02:10]} 23. Rde2 {[%emt 0:03:03]} Rge8 {[%emt 0:00:39]} 24. b3 {[%emt 0:03:29]} Nc3 {[%emt 0:03:18]} 25. Nxc3 {[%emt 0:00:07]} Bxc3 {[%emt 0:00:07]} 26. Rxe6 {[%emt 0:00:12]} Rxe6 {[%emt 0:00:05]} 27. Rxe6 {[%emt 0:00:42]} Kxe6 {[%emt 0:00:01]} 28. Kc2 {[%emt 0:00:21]} Bd4 {[%emt 0:05:05]} 29. g4 {[%emt 0:02:10]} b5 {[%emt 0:00:39]} 30. Kd3 {[%emt 0:00:29]} Bg1 {[%emt 0:00:57]} 31. h3 {[%emt 0:00:55]} c5 {[%emt 0:01:57]} 32. Ke4 {[%emt 0:07:39]} d5+ {[%emt 0:04:23]} 33. Kf3 {[%emt 0:00:35]} Bd4 {[%emt 0:02:39]} 34. Bf8 {[%emt 0:01:57]} c4 {[%emt 0:00:41]} 35. Ke2 {[%emt 0:00:34]} Bb6 {[%emt 0:02:30]} 36. Bg7 {[%emt 0:01:31]} d4 {[%emt 0:00:37]} 37. Bh8 {[%emt 0:01:49]} Kd5 {[%emt 0:00:58]} 38. f5 {[%emt 0:00:14]} gxf5 {[%emt 0:00:14]} 39. gxf5 {[%emt 0:00:05]} Bc5 {[%emt 0:09:02]} 40. Bg7 {[%emt 0:01:28]} Ke4 {[%emt 0:00:17]} 0-1

[Event "94th FRA-ch Veterans 2019"]
[Site "Chartres"]
[Date "2019.08.23"]
[Round "7.5"]
[White "Canonne, Antoine"]
[Black "Goldenberg, Richard"]
[Result "1/2-1/2"]
[ECO "B06"]
[WhiteElo "1920"]
[BlackElo "2219"]
[Annotator "NA"]
[PlyCount "58"]
[EventDate "2019.08.17"]
[EventType "swiss"]
[EventCountry "FRA"]
[SourceTitle "playchess.com"]
[Source "ChessBase"]
[SourceQuality "1"]
[TimeControl "40/5400+30:1800+30"]

1. e4 {[%emt 0:00:00]} g6 {[%emt 0:00:00]} 2. d4 {[%emt 0:00:00]} Bg7 {[%emt 0:00:00]} 3. Nc3 {[%emt 0:00:00]} c5 {[%emt 0:00:05]} 4. Be3 {[%emt 0:00:25]} Nc6 {[%emt 0:20:39]} 5. dxc5 {[%emt 0:14:12]} Bxc3+ {[%emt 0:00:28]} 6. bxc3 {[%emt 0:00:09]} Qa5 {[%emt 0:01:01]} 7. Qd2 {[%emt 0:01:55]} Nf6 {[%emt 0:01:52]} 8. f3 {[%emt 0:02:57]} O-O {[%emt 0:00:24]} 9. Bd3 {[%emt 0:01:27]} Rd8 {[%emt 0:01:44]} 10. Ne2 {[%emt 0:01:21]} b6 {[%emt 0:02:47]} 11. cxb6 {[%emt 0:00:33]} d5 {[%emt 0:06:24]} 12. Nd4 {[%emt 0:14:58]} Qxb6 {[%emt 0:23:22]} 13. Nxc6 {[%emt 0:02:11]} Qxc6 {[%emt 0:00:03]} 14. e5 {[%emt 0:00:14]} Nd7 {[%emt 0:01:46]} 15. Bd4 {[%emt 0:00:30]} f6 {[%emt 0:14:50]} 16. f4 {[%emt 0:02:45]} fxe5 {[%emt 0:00:09]} 17. fxe5 {[%emt 0:00:16]} Rf8 {[%emt 0:00:26]} 18. Rf1 {[%emt 0:01:34]} Ba6 {[%emt 0:00:19]} 19. Qe2 {[%emt 0:15:19]} Bc4 {[%emt 0:00:53]} 20. Bxc4 {[%emt 0:06:27]} dxc4 {[%emt 0:00:19]} 21. Kd2 {[%emt 0:06:20]} e6 {[%emt 0:03:12]} 22. Rxf8+ {[%emt 0:02:10]} Rxf8 {[%emt 0:08:14]} 23. Rf1 {[%emt 0:03:15]} a6 {[%emt 0:04:44]} 24. Rxf8+ {[%emt 0:00:28]} Kxf8 {[%emt 0:00:29]} 25. h4 {[%emt 0:01:45]} Ke8 {[%emt 0:01:25]} 26. h5 {[%emt 0:01:35]} Qd5 {[%emt 0:01:01]} 27. hxg6 {[%emt 0:00:29]} hxg6 {[%emt 0:00:01]} 28. Kc1 {[%emt 0:02:50]} Kf7 {[%emt 0:01:50]} 29. Qg4 {[%emt 0:03:14]} Qc6 {[%emt 0:01:39]} 1/2-1/2

[Event "94th FRA-ch Veterans 2019"]
[Site "Chartres"]
[Date "2019.08.23"]
[Round "7.6"]
[White "Ribaud-Chevrey, Philippe"]
[Black "Beaufils, Philippe"]
[Result "1-0"]
[ECO "A00"]
[WhiteElo "2038"]
[BlackElo "1811"]
[Annotator "NA"]
[PlyCount "31"]
[EventDate "2019.08.17"]
[EventType "swiss"]
[EventCountry "FRA"]
[SourceTitle "playchess.com"]
[Source "ChessBase"]
[SourceQuality "1"]
[TimeControl "40/5400+30:1800+30"]

1. Nc3 {[%emt 0:00:08]} d5 {[%emt 0:01:43]} 2. e4 {[%emt 0:01:06]} dxe4 {[%emt 0:00:36]} 3. Nxe4 {[%emt 0:00:08]} Nf6 {[%emt 0:01:22]} 4. Nxf6+ {[%emt 0:01:05]} gxf6 {[%emt 0:00:02]} 5. Bc4 {[%emt 0:02:27]} Qd4 {[%emt 0:04:19]} 6. Qe2 {[%emt 0:05:57]} Bg4 {[%emt 0:02:32]} 7. f3 {[%emt 0:00:23]} Bd7 {[%emt 0:00:19]} 8. c3 {[%emt 0:00:16]} Qb6 {[%emt 0:02:46]} 9. d4 {[%emt 0:00:38]} Nc6 {[%emt 0:10:50]} 10. Be3 {[%emt 0:02:56]} Na5 {[%emt 0:00:55]} 11. Bd3 {[%emt 0:00:31]} Qd6 {[%emt 0:03:19]} 12. Rd1 {[%emt 0:11:34]} O-O-O {[%emt 0:03:13]} 13. b4 {[%emt 0:02:49]} Nc6 {[%emt 0:01:16]} 14. Bc4 {[%emt 0:00:27]} e5 {[%emt 0:11:34]} 15. d5 {[%emt 0:03:51]} Nb8 {[%emt 0:02:45]} 16. Bc5 {[%emt 0:00:08]} 1-0

[Event "94th FRA-ch Veterans 2019"]
[Site "Chartres"]
[Date "2019.08.24"]
[Round "8.1"]
[White "Large, Laurent"]
[Black "Dussol, Pierre"]
[Result "0-1"]
[ECO "E61"]
[WhiteElo "2183"]
[BlackElo "2102"]
[Annotator "NA"]
[PlyCount "74"]
[EventDate "2019.08.17"]
[EventType "swiss"]
[EventCountry "FRA"]
[SourceTitle "playchess.com"]
[Source "ChessBase"]
[SourceQuality "1"]
[TimeControl "40/5400+30:1800+30"]

1. d4 {[%emt 0:00:00]} Nf6 {[%emt 0:00:03]} 2. Nf3 {[%emt 0:00:04]} g6 {[%emt 0:01:12]} 3. c4 {[%emt 0:04:10]} Bg7 {[%emt 0:01:46]} 4. e3 {[%emt 0:00:16]} O-O {[%emt 0:00:43]} 5. Be2 {[%emt 0:00:10]} d6 {[%emt 0:01:42]} 6. Nc3 {[%emt 0:00:33]} Nbd7 {[%emt 0:02:35]} 7. O-O {[%emt 0:00:20]} e5 {[%emt 0:03:29]} 8. Qc2 {[%emt 0:00:18]} c6 {[%emt 0:02:45]} 9. Rd1 {[%emt 0:04:21]} Re8 {[%emt 0:09:55]} 10. b4 {[%emt 0:02:50]} e4 {[%emt 0:10:30]} 11. Nd2 {[%emt 0:00:17]} Qe7 {[%emt 0:01:35]} 12. a4 {[%emt 0:00:24]} Nf8 {[%emt 0:01:43]} 13. a5 {[%emt 0:01:57]} Bf5 {[%emt 0:01:07]} 14. a6 {[%emt 0:19:08]} b6 {[%emt 0:01:59]} 15. Bb2 {[%emt 0:08:04]} Rac8 {[%emt 0:04:23]} 16. Nf1 {[%emt 0:03:50]} h5 {[%emt 0:10:36]} 17. c5 {[%emt 0:05:02]} d5 {[%emt 0:12:26]} 18. cxb6 {[%emt 0:06:30]} axb6 {[%emt 0:00:30]} 19. b5 {[%emt 0:03:04]} Qe6 {[%emt 0:05:59]} 20. bxc6 {[%emt 0:02:19]} Qxc6 {[%emt 0:02:45]} 21. Qb3 {[%emt 0:00:46]} Qe6 {[%emt 0:02:54]} 22. a7 {[%emt 0:36:37]} Ra8 23. Nb5 Qd7 24. Rdc1 Ne6 25. Qa4 Red8 26. Qa6 h4 27. Qxb6 Ne8 28. Ba3 h3 29. g3 Ng5 30. Qc6 Qxc6 31. Rxc6 Bd7 32. Rb6 Bxb5 33. Rxb5 Rxa7 34. Bb2 Rxa1 35. Bxa1 Rc8 36. Rxd5 f5 37. g4 Rc2 0-1

[Event "94th FRA-ch Veterans 2019"]
[Site "Chartres"]
[Date "2019.08.24"]
[Round "8.2"]
[White "Daurelle, Herve"]
[Black "Leuly, Max"]
[Result "1-0"]
[ECO "B78"]
[WhiteElo "2179"]
[BlackElo "2018"]
[Annotator "NA"]
[PlyCount "96"]
[EventDate "2019.08.17"]
[EventType "swiss"]
[EventCountry "FRA"]
[SourceTitle "playchess.com"]
[Source "ChessBase"]
[SourceQuality "1"]
[TimeControl "40/5400+30:1800+30"]

1. e4 {[%emt 0:00:00]} c5 {[%emt 0:00:00]} 2. Nf3 {[%emt 0:00:00]} d6 {[%emt 0:00:00]} 3. d4 {[%emt 0:00:00]} cxd4 {[%emt 0:00:02]} 4. Nxd4 {[%emt 0:00:00]} Nf6 {[%emt 0:00:10]} 5. Nc3 {[%emt 0:00:05]} g6 {[%emt 0:00:22]} 6. Be3 {[%emt 0:00:19]} Bg7 {[%emt 0:00:13]} 7. f3 {[%emt 0:00:15]} O-O {[%emt 0:00:14]} 8. Qd2 {[%emt 0:00:17]} Nc6 {[%emt 0:00:15]} 9. Bc4 {[%emt 0:00:35]} Bd7 {[%emt 0:00:19]} 10. O-O-O {[%emt 0:00:23]} Ne5 {[%emt 0:01:35]} 11. Bb3 {[%emt 0:00:13]} Rc8 {[%emt 0:00:07]} 12. Kb1 {[%emt 0:00:30]} Nc4 {[%emt 0:01:17]} 13. Bxc4 {[%emt 0:00:11]} Rxc4 {[%emt 0:00:05]} 14. g4 {[%emt 0:00:56]} Qc7 {[%emt 0:02:34]} 15. h4 {[%emt 0:01:43]} Rc8 {[%emt 0:06:15]} 16. h5 {[%emt 0:01:48]} Qa5 {[%emt 0:05:37]} 17. Nb3 {[%emt 0:01:36]} Qe5 {[%emt 0:09:22]} 18. Bd4 {[%emt 0:01:28]} Qe6 {[%emt 0:06:56]} 19. h6 {[%emt 0:00:39]} Bh8 {[%emt 0:08:00]} 20. Rhe1 {[%emt 0:02:47]} Rxd4 {[%emt 0:14:53]} 21. Nxd4 {[%emt 0:01:26]} Qc4 {[%emt 0:03:11]} 22. g5 {[%emt 0:15:31]} Ne8 {[%emt 0:01:55]} 23. Nd5 {[%emt 0:00:21]} Kf8 {[%emt 0:01:41]} 24. c3 {[%emt 0:07:50]} Qc5 {[%emt 0:14:16]} 25. Nb3 {[%emt 0:03:15]} Qc6 {[%emt 0:03:35]} 26. Qe3 {[%emt 0:09:25]} b6 {[%emt 0:08:04]} 27. Nd4 {[%emt 0:05:02]} Qb7 {[%emt 0:01:14]} 28. f4 {[%emt 0:02:27]} e6 {[%emt 0:04:50]} 29. Nb4 {[%emt 0:02:19]} a5 {[%emt 0:00:52]} 30. Nbc2 {[%emt 0:03:56]} b5 {[%emt 0:02:34]} 31. f5 {[%emt 0:02:45]} gxf5 {[%emt 0:01:40]} 32. exf5 {[%emt 0:00:43]} e5 {[%emt 0:00:09]} 33. g6 {[%emt 0:01:54]} hxg6 {[%emt 0:02:03]} 34. fxg6 {[%emt 0:00:36]} fxg6 {[%emt 0:01:23]} 35. Qg5 {[%emt 0:04:21]} Nf6 {[%emt 0:01:11]} 36. Rf1 {[%emt 0:06:54]} Kf7 {[%emt 0:00:27]} 37. Rxf6+ {[%emt 0:05:54]} Bxf6 {[%emt 0:00:05]} 38. Rf1 {[%emt 0:00:05]} Bf5 {[%emt 0:01:01]} 39. Nxf5 {[%emt 0:00:09]} Bxg5 {[%emt 0:00:30]} 40. Nxd6+ {[%emt 0:00:07]} Ke7 {[%emt 0:00:30]} 41. Nxb7 {[%emt 0:30:19]} Bxh6 {[%emt 0:30:19]} 42. Nxa5 {[%emt 0:03:01]} Bf4 {[%emt 0:00:00]} 43. Nb4 {[%emt 0:00:00]} g5 {[%emt 0:00:00]} 44. Kc2 {[%emt 0:00:00]} Ke6 {[%emt 0:00:00]} 45. Nac6 {[%emt 0:00:00]} Rh8 {[%emt 0:00:00]} 46. Nd3 {[%emt 0:00:00]} Kd6 {[%emt 0:00:00]} 47. Ncxe5 {[%emt 0:00:00]} Bxe5 {[%emt 0:00:00]} 48. Rf5 {[%emt 0:00:00]} Kd5 {[%emt 0:04:14]} 1-0